Workbook

Sheet January
B2: Data of January
B4: Products | C4: Qty Produced | D4: Qty Sold
B5: Desktop | C5: 746 | D5: 700
B6: Laptop | C6: 600 | D6: 559
B7: Smartphone | C7: 616 | D7: 612
B8: Table Fan | C8: 690 | D8: 302
B9: Telephone | C9: 783 | D9: 487
B10: Radio | C10: 423 | D10: 51
B11: Television | C11: 771 | D11: 601
B12: Bicycle | C12: 852 | D12: 553
B13: Motorcycle | C13: 554 | D13: 57
B14: Private Car | C14: 612 | D14: 559
B15: Table Lamp | C15: 478 | D15: 373
B16: Guitar | C16: 786 | D16: 710
B17: Violin | C17: 766 | D17: 714
B18: Dinner Set | C18: 552 | D18: 433
B19: Wrist Watch | C19: 609 | D19: 512

Sheet February
B2: Data of February
B4: Products | C4: Qty Produced | D4: Qty Sold
B5: Desktop | C5: 813 | D5: 700
B6: Laptop | C6: 600 | D6: 589
B7: Smartphone | C7: 450 | D7: 412
B8: Table Fan | C8: 980 | D8: 881
B9: Telephone | C9: 333 | D9: 227
B10: Radio | C10: 867 | D10: 101
B11: Television | C11: 533 | D11: 401
B12: Bicycle | C12: 782 | D12: 553
B13: Motorcycle | C13: 992 | D13: 577
B14: Private Car | C14: 408 | D14: 359
B15: Table Lamp | C15: 564 | D15: 373
B16: Guitar | C16: 957 | D16: 881
B17: Violin | C17: 538 | D17: 314
B18: Dinner Set | C18: 696 | D18: 513
B19: Wrist Watch | C19: 627 | D19: 400

Sheet March
B2: Data of March
B4: Products | C4: Qty Produced | D4: Qty Sold
B5: Desktop | C5: 983 | D5: 717
B6: Laptop | C6: 535 | D6: 489
B7: Smartphone | C7: 704 | D7: 412
B8: Table Fan | C8: 941 | D8: 707
B9: Telephone | C9: 378 | D9: 247
B10: Radio | C10: 906 | D10: 121
B11: Television | C11: 622 | D11: 405
B12: Bicycle | C12: 461 | D12: 333
B13: Motorcycle | C13: 877 | D13: 561
B14: Private Car | C14: 810 | D14: 451
B15: Table Lamp | C15: 469 | D15: 201
B16: Guitar | C16: 563 | D16: 399
B17: Violin | C17: 712 | D17: 101
B18: Dinner Set | C18: 656 | D18: 490
B19: Wrist Watch | C19: 997 | D19: 600

Sheet Cell Ref
B2: Using Formula
B4: Products | C4: Total Sales | F4: Practice Here!
B5: Desktop | C5: =January!D5+February!D5+March!D5 -> 2117
B6: Laptop | C6: =January!D6+February!D6+March!D6 -> 1637 | F6: Products | G6: Total Sales
B7: Smartphone | C7: =January!D7+February!D7+March!D7 -> 1436 | F7: Desktop
B8: Table Fan | C8: =January!D8+February!D8+March!D8 -> 1890 | F8: Laptop
B9: Telephone | C9: =January!D9+February!D9+March!D9 -> 961 | F9: Smartphone
B10: Radio | C10: =January!D10+February!D10+March!D10 -> 273 | F10: Table Fan
B11: Television | C11: =January!D11+February!D11+March!D11 -> 1407 | F11: Telephone
B12: Bicycle | C12: =January!D12+February!D12+March!D12 -> 1439 | F12: Radio
B13: Motorcycle | C13: =January!D13+February!D13+March!D13 -> 1195 | F13: Television
B14: Private Car | C14: =January!D14+February!D14+March!D14 -> 1369 | F14: Bicycle
B15: Table Lamp | C15: =January!D15+February!D15+March!D15 -> 947 | F15: Motorcycle
B16: Guitar | C16: =January!D16+February!D16+March!D16 -> 1990 | F16: Private Car
B17: Violin | C17: =January!D17+February!D17+March!D17 -> 1129 | F17: Table Lamp
B18: Dinner Set | C18: =January!D18+February!D18+March!D18 -> 1436 | F18: Guitar
B19: Wrist Watch | C19: =January!D19+February!D19+March!D19 -> 1512 | F19: Violin
F20: Dinner Set
F21: Wrist Watch

Sheet 3D Ref
B2: Using Formula
B4: Products | C4: Total Sales
B5: Desktop | C5: =SUM(January:March!D5) -> 2117
B6: Laptop | C6: =SUM(January:March!D6) -> 1637 | E6: Practice Here!
B7: Smartphone | C7: =SUM(January:March!D7) -> 1436
B8: Table Fan | C8: =SUM(January:March!D8) -> 1890 | E8: Products | F8: Total Sales
B9: Telephone | C9: =SUM(January:March!D9) -> 961 | E9: Desktop
B10: Radio | C10: =SUM(January:March!D10) -> 273 | E10: Laptop
B11: Television | C11: =SUM(January:March!D11) -> 1407 | E11: Smartphone
B12: Bicycle | C12: =SUM(January:March!D12) -> 1439 | E12: Table Fan
B13: Motorcycle | C13: =SUM(January:March!D13) -> 1195 | E13: Telephone
B14: Private Car | C14: =SUM(January:March!D14) -> 1369 | E14: Radio
B15: Table Lamp | C15: =SUM(January:March!D15) -> 947 | E15: Television
B16: Guitar | C16: =SUM(January:March!D16) -> 1990 | E16: Bicycle
B17: Violin | C17: =SUM(January:March!D17) -> 1129 | E17: Motorcycle
B18: Dinner Set | C18: =SUM(January:March!D18) -> 1436 | E18: Private Car
B19: Wrist Watch | C19: =SUM(January:March!D19) -> 1512 | E19: Table Lamp
E20: Guitar
E21: Violin
E22: Dinner Set
E23: Wrist Watch

Sheet Consolidate
B2: Using Consolidate Feature
B4: Products | C4: Total Sales | E4: Practice Here!
B5: Desktop | C5: 2117
B6: Laptop | C6: 1637 | E6: Products | F6: Total Sales
B7: Smartphone | C7: 1436 | E7: Desktop
B8: Table Fan | C8: 1890 | E8: Laptop
B9: Telephone | C9: 961 | E9: Smartphone
B10: Radio | C10: 273 | E10: Table Fan
B11: Television | C11: 1407 | E11: Telephone
B12: Bicycle | C12: 1439 | E12: Radio
B13: Motorcycle | C13: 1195 | E13: Television
B14: Private Car | C14: 1369 | E14: Bicycle
B15: Table Lamp | C15: 947 | E15: Motorcycle
B16: Guitar | C16: 1990 | E16: Private Car
B17: Violin | C17: 1129 | E17: Table Lamp
B18: Dinner Set | C18: 1436 | E18: Guitar
B19: Wrist Watch | C19: 1512 | E19: Violin
E20: Dinner Set
E21: Wrist Watch

Sheet PowerQuery
A1: Content.Products | B1: Content.Qty Produced | C1: Content.Qty Sold | D1: Name
A2: Desktop | B2: 746 | C2: 700 | D2: Table2
A3: Laptop | B3: 600 | C3: 559 | D3: Table2
A4: Smartphone | B4: 616 | C4: 612 | D4: Table2
A5: Table Fan | B5: 690 | C5: 302 | D5: Table2
A6: Telephone | B6: 783 | C6: 487 | D6: Table2
A7: Radio | B7: 423 | C7: 51 | D7: Table2
A8: Television | B8: 771 | C8: 601 | D8: Table2
A9: Bicycle | B9: 852 | C9: 553 | D9: Table2
A10: Motorcycle | B10: 554 | C10: 57 | D10: Table2
A11: Private Car | B11: 612 | C11: 559 | D11: Table2
A12: Table Lamp | B12: 478 | C12: 373 | D12: Table2
A13: Guitar | B13: 786 | C13: 710 | D13: Table2
A14: Violin | B14: 766 | C14: 714 | D14: Table2
A15: Dinner Set | B15: 552 | C15: 433 | D15: Table2
A16: Wrist Watch | B16: 609 | C16: 512 | D16: Table2
A17: Desktop | B17: 813 | C17: 700 | D17: Table3
A18: Laptop | B18: 600 | C18: 589 | D18: Table3
A19: Smartphone | B19: 450 | C19: 412 | D19: Table3
A20: Table Fan | B20: 980 | C20: 881 | D20: Table3
A21: Telephone | B21: 333 | C21: 227 | D21: Table3
A22: Radio | B22: 867 | C22: 101 | D22: Table3
A23: Television | B23: 533 | C23: 401 | D23: Table3
A24: Bicycle | B24: 782 | C24: 553 | D24: Table3
A25: Motorcycle | B25: 992 | C25: 577 | D25: Table3
A26: Private Car | B26: 408 | C26: 359 | D26: Table3
A27: Table Lamp | B27: 564 | C27: 373 | D27: Table3
A28: Guitar | B28: 957 | C28: 881 | D28: Table3
A29: Violin | B29: 538 | C29: 314 | D29: Table3
A30: Dinner Set | B30: 696 | C30: 513 | D30: Table3
A31: Wrist Watch | B31: 627 | C31: 400 | D31: Table3
A32: Desktop | B32: 983 | C32: 717 | D32: Table4
A33: Laptop | B33: 535 | C33: 489 | D33: Table4
A34: Smartphone | B34: 704 | C34: 412 | D34: Table4
A35: Table Fan | B35: 941 | C35: 707 | D35: Table4
A36: Telephone | B36: 378 | C36: 247 | D36: Table4
A37: Radio | B37: 906 | C37: 121 | D37: Table4
A38: Television | B38: 622 | C38: 405 | D38: Table4
A39: Bicycle | B39: 461 | C39: 333 | D39: Table4
A40: Motorcycle | B40: 877 | C40: 561 | D40: Table4
A41: Private Car | B41: 810 | C41: 451 | D41: Table4
A42: Table Lamp | B42: 469 | C42: 201 | D42: Table4
A43: Guitar | B43: 563 | C43: 399 | D43: Table4
A44: Violin | B44: 712 | C44: 101 | D44: Table4
A45: Dinner Set | B45: 656 | C45: 490 | D45: Table4
A46: Wrist Watch | B46: 997 | C46: 600 | D46: Table4
D47: Query1!ExternalData_1

Sheet Jan
B2: Sales Record of January
B4: Week | C4: Items Produced | D4: Qty Sold
B5: Week 1 | C5: 547 | D5: 511
B6: Week 2 | C6: 1142 | D6: 1001
B7: Week 3 | C7: 882 | D7: 203
B8: Week 4 | C8: 1160 | D8: 1154

Sheet Feb
B2: Sales Record of February
B4: Week | C4: Items Produced | D4: Qty Sold
B5: Week 1 | C5: 644 | D5: 643
B6: Week 2 | C6: 1375 | D6: 1300
B7: Week 3 | C7: 1412 | D7: 1310
B8: Week 4 | C8: 965 | D8: 777

Sheet Mar
B2: Sales Record of March
B4: Week | C4: Items Produced | D4: Qty Sold
B5: Week 1 | C5: 644 | D5: 643
B6: Week 2 | C6: 1375 | D6: 1300
B7: Week 3 | C7: 1412 | D7: 1310
B8: Week 4 | C8: 965 | D8: 777

Sheet VBA
B2: Sales Record of January
B4: Week | C4: Items Produced | D4: Qty Sold
B5: Week 1 | C5: 547 | D5: 511
B6: Week 2 | C6: 1142 | D6: 1001
B7: Week 3 | C7: 882 | D7: 203
B8: Week 4 | C8: 1160 | D8: 1154
B9: Sales Record of February
B11: Week | C11: Items Produced | D11: Qty Sold
B12: Week 1 | C12: 644 | D12: 643
B13: Week 2 | C13: 1375 | D13: 1300
B14: Week 3 | C14: 1412 | D14: 1310
B15: Week 4 | C15: 965 | D15: 777
B17: Sales Record of March
B19: Week | C19: Items Produced | D19: Qty Sold
B20: Week 1 | C20: 644 | D20: 643
B21: Week 2 | C21: 1375 | D21: 1300
B22: Week 3 | C22: 1412 | D22: 1310
B23: Week 4 | C23: 965 | D23: 777
